{"text_format":"1","workbook":"xlsx","n_sheets":3,"sheets":["แดชบอร์ด","รายการอุปกรณ์","ข้อมูล Pivot"],"not_rendered":{"charts":0,"images":0,"macros":1,"external_links":0,"defined_names":13,"comments":0,"pivot_tables":1},"unopened":[],"bounds":{"document_bytes":16777216,"sheet_cells":100000,"rows_first":2000,"rows_last":500,"rows_between":2000,"halvings":0,"cell_chars":16384,"cell_head_chars":4096},"cells_cut":0,"cells_raw":0,"read":"whole","date_system":"1900"}

{"sheet":"แดชบอร์ด","index":0,"n_rows":20,"n_cols":6,"rows_kept":20,"cut":false,"hidden":false,"merged":[]}
[null,"แดชบอร์ด"]
[]
[]
[null,null,null,null,null,"จำนวนรวม"]
[null,null,null,null,null,{"$f":"GETPIVOTDATA(\"นับจำนวนของมูลค่าเริ่มต้น\",'ข้อมูล Pivot'!$B$11)","v":3}]
[]
[null,null,null,null,null,"ค่าใช้จ่ายรายเดือนทั้งหมด"]
[null,null,null,null,null,{"$f":"GETPIVOTDATA(\"ค่าใช้จ่ายรายเดือนทั้งหมด \",'ข้อมูล Pivot'!$B$11)","v":1765.5943035068672}]
[]
[null,null,null,null,null,"ค่าใช้จ่ายในการดำเนินการ"]
[null,null,null,null,null,{"$f":"GETPIVOTDATA(\"ค่าใช้จ่ายในการ\nดำเนินการรายเดือน \",'ข้อมูล Pivot'!$B$11)","v":605}]
[]
[null,null,null,null,null,"ค่าเสื่อมราคารายเดือน"]
[null,null,null,null,null,{"$f":"GETPIVOTDATA(\"ค่าเสื่อมราคารายเดือน\",'ข้อมูล Pivot'!$B$11)","v":659.72222222222217}]
[]
[null,null,null,null,null,"จำนวนเงินที่ชำระ"]
[null,null,null,null,null,{"$f":"GETPIVOTDATA(\"การชำระเงินรายเดือน \",'ข้อมูล Pivot'!$B$11)","v":1160.5943035068672}]
[]
[null,null,null,null,null,"มูลค่าปัจจุบัน"]
[null,null,null,null,null,{"$f":"GETPIVOTDATA(\"มูลค่าปัจจุบัน \",'ข้อมูล Pivot'!$B$11)","v":36600}]

{"sheet":"รายการอุปกรณ์","index":1,"n_rows":9,"n_cols":20,"rows_kept":9,"cut":false,"hidden":false,"merged":[]}
[null,"รายการอุปกรณ์"]
[]
[null,null,null,"เน้นเมื่อการชำระเงินรายเดือนที่เหลือมีค่าน้อยกว่า: ",20]
[]
[null,"สินทรัพย์\nหรือเลขผลิตภัณฑ์","รายละเอียดอุปกรณ์\n(ยี่ห้อและรุ่น)","สถานที่","สภาพ","ผู้จำหน่าย","ปีบริการที่เหลือ","มูลค่าเริ่มต้น","ชำระครั้งแรก","วันที่ซื้อ\nหรือเช่า","ระยะสินเชื่อ\n(ปี)","อัตราดอกเบี้ยสินเชื่อ","ค่าใช้จ่ายในการดำเนินการรายเดือน","มูลค่าที่คาดหวังเมื่อสิ้นสุดสัญญา","การชำระเงินรายเดือนคงเหลือ","การชำระเงินรายเดือน","ค่าใช้จ่ายรายเดือนทั้งหมด","ค่าเสื่อมราคารายปี\n(แบบเส้นตรง)","ค่าเสื่อมราคารายเดือน\n(แบบเส้นตรง)","มูลค่าปัจจุบัน"]
[null,123,"ยี่ห้อและรุ่น 1","สาขาหลัก","ดี","ภายในประเทศ",5,30000,5000,"2011-01-15",4,0.1,200,20000,{"$f":"IFERROR(SUMPRODUCT(--(DAY(ROW(OFFSET($A$1,,,DATE(YEAR(Equipment[[#This Row],[วันที่ซื้อ\nหรือเช่า]])+Equipment[[#This Row],[ระยะสินเชื่อ\n(ปี)]],MONTH(Equipment[[#This Row],[วันที่ซื้อ\nหรือเช่า]])-1,DAY(Equipment[[#This Row],[วันที่ซื้อ\nหรือเช่า]]))-TODAY()))+DATE(YEAR(Equipment[[#This Row],[วันที่ซื้อ\nหรือเช่า]])+Equipment[[#This Row],[ระยะสินเชื่อ\n(ปี)]],MONTH(Equipment[[#This Row],[วันที่ซื้อ\nหรือเช่า]]),DAY(Equipment[[#This Row],[วันที่ซื้อ\nหรือเช่า]]))-1)=DAY(Equipment[[#This Row],[วันที่ซื้อ\nหรือเช่า]]))),0)","v":24},{"$f":"IFERROR(-(Equipment[มูลค่าเริ่มต้น]>0)*(Equipment[มูลค่าเริ่มต้น]<>Equipment[ชำระครั้งแรก])*PMT(Equipment[อัตราดอกเบี้ยสินเชื่อ]/MonthsInYear,Equipment[ระยะสินเชื่อ\n(ปี)]*MonthsInYear,Equipment[มูลค่าเริ่มต้น]-Equipment[ชำระครั้งแรก]),0)","v":634.06458586867973},{"$f":"Equipment[[#This Row],[การชำระเงินรายเดือน]]+Equipment[ค่าใช้จ่ายในการดำเนินการรายเดือน]","v":834.06458586867973},{"$f":"IFERROR((Equipment[มูลค่าเริ่มต้น]>0)*SLN(Equipment[มูลค่าเริ่มต้น],Equipment[มูลค่าที่คาดหวังเมื่อสิ้นสุดสัญญา],Equipment[ระยะสินเชื่อ\n(ปี)]),0)","v":2500},{"$f":"IFERROR(Equipment[ค่าเสื่อมราคารายปี\n(แบบเส้นตรง)]/MonthsInYear,0)","v":208.33333333333334},{"$f":"IFERROR(Equipment[มูลค่าเริ่มต้น]-(Equipment[ค่าเสื่อมราคารายปี\n(แบบเส้นตรง)]*((TODAY()-Equipment[วันที่ซื้อ\nหรือเช่า])/DaysInYear)),0)","v":25068.493150684932}]
[null,234,"ยี่ห้อและรุ่น 2","สาขาหลัก","ดี","ภายในประเทศ",4,12500,1500,"2011-03-10",3,7.7499999999999999E-2,120,3000,{"$f":"IFERROR(SUMPRODUCT(--(DAY(ROW(OFFSET($A$1,,,DATE(YEAR(Equipment[[#This Row],[วันที่ซื้อ\nหรือเช่า]])+Equipment[[#This Row],[ระยะสินเชื่อ\n(ปี)]],MONTH(Equipment[[#This Row],[วันที่ซื้อ\nหรือเช่า]])-1,DAY(Equipment[[#This Row],[วันที่ซื้อ\nหรือเช่า]]))-TODAY()))+DATE(YEAR(Equipment[[#This Row],[วันที่ซื้อ\nหรือเช่า]])+Equipment[[#This Row],[ระยะสินเชื่อ\n(ปี)]],MONTH(Equipment[[#This Row],[วันที่ซื้อ\nหรือเช่า]]),DAY(Equipment[[#This Row],[วันที่ซื้อ\nหรือเช่า]]))-1)=DAY(Equipment[[#This Row],[วันที่ซื้อ\nหรือเช่า]]))),0)","v":14},{"$f":"IFERROR(-(Equipment[มูลค่าเริ่มต้น]>0)*(Equipment[มูลค่าเริ่มต้น]<>Equipment[ชำระครั้งแรก])*PMT(Equipment[อัตราดอกเบี้ยสินเชื่อ]/MonthsInYear,Equipment[ระยะสินเชื่อ\n(ปี)]*MonthsInYear,Equipment[มูลค่าเริ่มต้น]-Equipment[ชำระครั้งแรก]),0)","v":343.43280007691891},{"$f":"Equipment[[#This Row],[การชำระเงินรายเดือน]]+Equipment[ค่าใช้จ่ายในการดำเนินการรายเดือน]","v":463.43280007691891},{"$f":"IFERROR((Equipment[มูลค่าเริ่มต้น]>0)*SLN(Equipment[มูลค่าเริ่มต้น],Equipment[มูลค่าที่คาดหวังเมื่อสิ้นสุดสัญญา],Equipment[ระยะสินเชื่อ\n(ปี)]),0)","v":3166.6666666666665},{"$f":"IFERROR(Equipment[ค่าเสื่อมราคารายปี\n(แบบเส้นตรง)]/MonthsInYear,0)","v":263.88888888888886},{"$f":"IFERROR(Equipment[มูลค่าเริ่มต้น]-(Equipment[ค่าเสื่อมราคารายปี\n(แบบเส้นตรง)]*((TODAY()-Equipment[วันที่ซื้อ\nหรือเช่า])/DaysInYear)),0)","v":6721.9178082191784}]
[null,345,"ยี่ห้อและรุ่น 2","สาขา 1","พอใช้","อื่นๆ",1,10000,2500,"2010-09-15",4,0.08,285,1000,{"$f":"IFERROR(SUMPRODUCT(--(DAY(ROW(OFFSET($A$1,,,DATE(YEAR(Equipment[[#This Row],[วันที่ซื้อ\nหรือเช่า]])+Equipment[[#This Row],[ระยะสินเชื่อ\n(ปี)]],MONTH(Equipment[[#This Row],[วันที่ซื้อ\nหรือเช่า]])-1,DAY(Equipment[[#This Row],[วันที่ซื้อ\nหรือเช่า]]))-TODAY()))+DATE(YEAR(Equipment[[#This Row],[วันที่ซื้อ\nหรือเช่า]])+Equipment[[#This Row],[ระยะสินเชื่อ\n(ปี)]],MONTH(Equipment[[#This Row],[วันที่ซื้อ\nหรือเช่า]]),DAY(Equipment[[#This Row],[วันที่ซื้อ\nหรือเช่า]]))-1)=DAY(Equipment[[#This Row],[วันที่ซื้อ\nหรือเช่า]]))),0)","v":20},{"$f":"IFERROR(-(Equipment[มูลค่าเริ่มต้น]>0)*(Equipment[มูลค่าเริ่มต้น]<>Equipment[ชำระครั้งแรก])*PMT(Equipment[อัตราดอกเบี้ยสินเชื่อ]/MonthsInYear,Equipment[ระยะสินเชื่อ\n(ปี)]*MonthsInYear,Equipment[มูลค่าเริ่มต้น]-Equipment[ชำระครั้งแรก]),0)","v":183.09691756126861},{"$f":"Equipment[[#This Row],[การชำระเงินรายเดือน]]+Equipment[ค่าใช้จ่ายในการดำเนินการรายเดือน]","v":468.09691756126858},{"$f":"IFERROR((Equipment[มูลค่าเริ่มต้น]>0)*SLN(Equipment[มูลค่าเริ่มต้น],Equipment[มูลค่าที่คาดหวังเมื่อสิ้นสุดสัญญา],Equipment[ระยะสินเชื่อ\n(ปี)]),0)","v":2250},{"$f":"IFERROR(Equipment[ค่าเสื่อมราคารายปี\n(แบบเส้นตรง)]/MonthsInYear,0)","v":187.5},{"$f":"IFERROR(Equipment[มูลค่าเริ่มต้น]-(Equipment[ค่าเสื่อมราคารายปี\n(แบบเส้นตรง)]*((TODAY()-Equipment[วันที่ซื้อ\nหรือเช่า])/DaysInYear)),0)","v":4809.58904109589}]
[null,"ผลรวม",null,null,null,null,{"$f":"SUBTOTAL(101,Equipment[ปีบริการที่เหลือ])","v":3.3333333333333335},{"$f":"SUBTOTAL(109,Equipment[มูลค่าเริ่มต้น])","v":52500},{"$f":"SUBTOTAL(109,Equipment[ชำระครั้งแรก])","v":9000},null,{"$f":"SUBTOTAL(101,Equipment[ระยะสินเชื่อ\n(ปี)])","v":3.6666666666666665},{"$f":"SUBTOTAL(101,Equipment[อัตราดอกเบี้ยสินเชื่อ])","v":8.5833333333333331E-2},{"$f":"SUBTOTAL(109,Equipment[ค่าใช้จ่ายในการดำเนินการรายเดือน])","v":605},{"$f":"SUBTOTAL(109,Equipment[มูลค่าที่คาดหวังเมื่อสิ้นสุดสัญญา])","v":24000},{"$f":"SUBTOTAL(101,Equipment[การชำระเงินรายเดือนคงเหลือ])","v":19.333333333333332},{"$f":"SUBTOTAL(109,Equipment[การชำระเงินรายเดือน])","v":1160.5943035068672},{"$f":"SUBTOTAL(109,Equipment[ค่าใช้จ่ายรายเดือนทั้งหมด])","v":1765.5943035068672},{"$f":"SUBTOTAL(101,Equipment[ค่าเสื่อมราคารายปี\n(แบบเส้นตรง)])","v":2638.8888888888887},{"$f":"SUBTOTAL(101,Equipment[ค่าเสื่อมราคารายเดือน\n(แบบเส้นตรง)])","v":219.90740740740739},{"$f":"SUBTOTAL(109,Equipment[มูลค่าปัจจุบัน])","v":36600}]

{"sheet":"ข้อมูล Pivot","index":2,"n_rows":15,"n_cols":8,"rows_kept":15,"cut":false,"hidden":true,"merged":[]}
[null,"ข้อมูล Pivot"]
[null,"แผ่นงานนี้ควรซ่อนอยู่ การเปลี่ยนแปลงโครงสร้าง PivotTable บนแผ่นงานนี้อาจทำให้เกิดข้อผิดพลาดบนในตัวแบ่งส่วนข้อมูลของแดชบอร์ดได้"]
[]
[]
[null,"รายละเอียดอุปกรณ์\n(ยี่ห้อและรุ่น)","(ทั้งหมด)"]
[null,"สถานที่","(ทั้งหมด)"]
[null,"สภาพ","(ทั้งหมด)"]
[null,"ผู้จำหน่าย","(ทั้งหมด)"]
[null,"ระยะสินเชื่อ\n(ปี)","(ทั้งหมด)"]
[]
[null,"ป้ายชื่อแถว","นับจำนวนของมูลค่าเริ่มต้น","ค่าใช้จ่ายในการ\nดำเนินการรายเดือน ","การชำระเงินรายเดือน ","ค่าใช้จ่ายรายเดือนทั้งหมด ","ค่าเสื่อมราคารายเดือน","มูลค่าปัจจุบัน "]
[null,123,1,200,634.06458586867973,834.06458586867973,208.33333333333334,25068.493150684932]
[null,234,1,120,343.43280007691891,463.43280007691891,263.88888888888886,6721.9178082191784]
[null,345,1,285,183.09691756126861,468.09691756126858,187.5,4809.58904109589]
[null,"ผลรวมทั้งหมด",3,605,1160.5943035068672,1765.5943035068672,659.72222222222217,36600]